bitfinex-derivatives/quotes_SOLF0:USTF0_20251219
["timestamp","ask_amount","ask_price","bid_price","bid_amount"]
[1766161939086,2.87669,126.64,126.57,9.17]
[1766161939486,0.05018537,126.62,126.59,0.05407523]
[1766161939686,0.05018537,126.62,126.57,9.17]
[1766161939687,0.96018537,126.62,126.51,127.06054997]
[1766161939890,0.91,126.62,126.52,9.17]
[1766161940191,3.79669,126.64,126.53,9.17]
[1766161940482,8.0315,126.63,126.55,7.1154]
[1766161940688,0.05419427,126.6,126.58,0.06074648]
[1766161940985,2.87669,126.64,126.58,0.06074648]
[1766161941785,0.0571794,126.62,126.58,0.06074648]
[1766161943092,2.87669,126.64,126.58,9.23074648]
[1766161943989,0.05667059,126.62,126.58,0.06074648]
[1766161945387,0.05667059,126.62,126.58,9.23074648]
[1766161946191,2.87669,126.64,126.58,9.23074648]
[1766161946695,2.87669,126.64,126.59,9.17]
[1766161947080,0.05572186,126.63,126.59,9.17]
[1766161947988,47.78,126.69,126.59,9.17]
[1766161948295,47.78,126.69,126.6,9.17]
[1766161948688,54.8882,126.69,126.61,9.17]
[1766161948991,0.0575367,126.66,126.64,0.0498623]
[1766161950198,1.2,126.71,126.64,0.0498623]
[1766161950490,1.2,126.71,126.63,9.17]
[1766161950893,7.108,126.69,126.63,9.17]
[1766161951191,46.66,126.73,126.63,9.17]
[1766161951497,0.00153242,126.67,126.65,9.22212772]
[1766161951694,47.98,126.73,126.65,9.17]
[1766161951888,1.32,126.72,126.65,9.17]
[1766161952097,1.32,126.71,126.62,16.2814]
[1766161952304,1.32,126.71,126.65,0.05713766]
[1766161953203,158.5255,126.73,126.65,9.22713766]
[1766161953400,7.1074,126.7,126.68,3.01e-05]
[1766161953900,7.1074,126.7,126.62,16.2815]
[1766161953901,1.28,126.7,126.62,16.2815]
[1766161954204,47.95,126.73,126.63,8.95]
[1766161954501,1.29,126.72,126.63,8.95]
[1766161954799,0.05729153,126.69,126.66,0.05921493]
[1766161955202,46.66,126.73,126.66,0.05921493]
[1766161955401,1.35,126.72,126.66,0.05921493]
[1766161955894,8.4563,126.72,126.66,0.05921493]
[1766161956289,1.35,126.72,126.66,0.05921493]
[1766161956998,110.5082,126.76,126.67,8.95]
[1766161956999,1.36,126.76,126.67,8.95]
[1766161957304,1.36,126.76,126.7,0.05012514]
[1766161957693,7.1046,126.75,126.7,0.05012514]
[1766161957991,1.32,126.74,126.7,0.00012514]
[1766161958194,1.32,126.73,126.64,8.95]
[1766161958395,1.32,126.77,126.65,8.95]
[1766161958603,1.32,126.76,126.65,8.95]
[1766161958901,8.425,126.75,126.66,8.95]
[1766161959298,8.425,126.75,126.63,157.2743]
[1766161959299,1.32348586,126.72,126.69,5.902e-05]
[1766161959896,1.28,126.7,126.63,8.95]
[1766161960705,8.388,126.69,126.61,7.1123]
[1766161961003,0.05129848,126.66,126.64,0.05313525]
[1766161961401,0.00129848,126.66,126.64,0.05313525]
[1766161961607,0.00129848,126.66,126.64,9.00313525]
[1766161962196,0.00129848,126.66,126.64,0.05313525]
[1766161962817,0.00129848,126.66,126.64,9.00313525]
[1766161963610,0.00129848,126.66,126.64,16.11353525]
[1766161963906,0.00129848,126.66,126.65,8.95]
[1766161967110,0.00129848,126.66,126.64,0.05313525]
[1766161967506,0.00129848,126.66,126.59,55.59]
[1766161967698,8.4781,126.69,126.61,8.95]
[1766161968506,0.05072413,126.66,126.64,0.05031669]
[1766161969008,0.00072413,126.66,126.64,0.05031669]
[1766161969212,0.00072413,126.66,126.64,9.00031669]
[1766161970613,8.4848,126.75,126.65,8.95]
[1766161971004,1.38,126.75,126.65,8.95]
[1766161971312,7.1058,126.73,126.65,8.95]
[1766161971516,8.4958,126.73,126.65,55.59]
[1766161971716,0.0583952,126.7,126.68,0.05545891]
[1766161972413,110.5167,126.75,126.68,9.00545891]
[1766161972414,7.1048,126.75,126.68,9.00545891]
[1766161972620,8.5548,126.75,126.68,0.05545891]
[1766161972917,1.45,126.75,126.68,0.05545891]
[1766161973514,1.46,126.73,126.68,0.05545891]
[1766161974114,1.41,126.71,126.62,16.0614]
[1766161974420,1.41,126.76,126.65,8.95]
[1766161974622,1.41,126.75,126.65,8.95]
[1766161975321,0.05614823,126.71,126.69,0.05415945]
[1766161976922,0.05614823,126.71,126.69,0.00415945]
[1766161978228,0.05614823,126.71,126.65,8.95]
[1766161979224,0.05614823,126.71,126.67,0.05541941]
[1766161980021,8.55304823,126.71,126.63,46.64]
[1766161980221,1.39,126.71,126.62,8.95]
[1766161980528,7.1092,126.67,126.59,11.81715]
[1766161980930,0.05420092,126.64,126.62,0.0591684]
[1766161982126,1.34,126.7,126.62,9.0091684]
[1766161982430,7.107,126.71,126.62,8.95]
[1766161982926,7.107,126.71,126.59,113.51285]
[1766161982927,1.4,126.7,126.63,8.95]
[1766161983128,0.06078944,126.68,126.65,0.00161973]
[1766161984828,1.41078944,126.68,126.65,0.00161973]
[1766161985719,1.41078944,126.68,126.6,17.0424]
[1766161985921,1.35,126.68,126.6,17.0424]
[1766161986522,8.4586,126.68,126.6,9.93]
[1766161986714,0.05692425,126.65,126.63,0.06030897]
[1766161987129,46.62,126.7,126.64,9.93]
[1766161987331,46.62,126.74,126.64,9.93]
[1766161987520,25.39817897,126.77,126.67,9.93]
[1766161987720,79.12177897,126.77,126.67,17.0385]
[1766161988116,0.05561994,126.73,126.71,0.05647217]
[1766161989326,1.39,126.77,126.71,0.05647217]
[1766161989529,1.38,126.76,126.66,26.17692863]
[1766161989727,1.38,126.76,126.67,9.93]
[1766161989933,8.4842,126.76,126.67,9.93]
[1766161990129,134.26836255,126.78,126.68,9.93]
[1766161990130,25.06666255,126.78,126.68,9.93]
[1766161990432,53.7218,126.8,126.7,9.93]
[1766161990627,53.7218,126.8,126.74,0.05255483]
[1766161990628,0.05411224,126.76,126.74,0.05255483]
[1766161992436,0.05411224,126.76,126.7,9.93]
[1766161992638,0.00411224,126.76,126.7,120.486]
[1766161992932,9.33,126.88,126.76,117.6087]
[1766161993137,9.33,126.88,126.77,55.77762863]
[1766161993332,9.33,126.88,126.78,110.4854]
[1766161993631,9.33,126.91,126.8,110.4678]
[1766161993934,0.00428092,126.87,126.84,0.05684193]
[1766161994533,0.00428092,126.87,126.79,46.62]
[1766161994729,9.33,126.89,126.8,110.468]
[1766161994923,9.33,126.92,126.81,110.4581]
[1766161995136,9.33,126.92,126.83,110.4418]
[1766161995332,9.33,126.92,126.82,110.4471]
[1766161995539,0.05287005,126.89,126.86,0.05846001]
[1766161996134,0.05287005,126.89,126.79,117.576]
[1766161996340,9.33,126.89,126.78,110.4862]
[1766161996529,9.33,126.89,126.79,157.0961]
[1766161997238,9.33,126.89,126.83,0.05517439]
[1766161997239,0.04981185,126.85,126.83,0.05517439]
[1766161997437,0.04981185,126.85,126.76,110.4996]
[1766161997636,9.33,126.87,126.78,110.4854]
[1766161997935,55.93,126.9,126.8,110.4683]
[1766161998132,9.33,126.9,126.81,157.0585]
[1766161998333,0.056977,126.87,126.84,0.05394774]
[1766161998737,9.33,126.9,126.84,0.05394774]
[1766161999540,9.98,126.89,126.84,0.05394774]
[1766161999729,0.05335631,126.88,126.84,0.05394774]
[1766162002931,10.03335631,126.88,126.77,110.4968]
[1766162003148,9.98,126.88,126.77,157.0968]
[1766162003338,9.98,126.88,126.78,110.4876]
[1766162003540,9.98,126.91,126.8,110.4667]
[1766162003739,9.98,126.91,126.81,8.563249]
[1766162003935,0.04972268,126.87,126.85,0.05573519]
[1766162004142,110.3547,126.94,126.85,0.05573519]
[1766162004143,9.98,126.94,126.86,8.563249]
[1766162004347,9.98,126.94,126.87,8.563249]
[1766162004544,9.98,126.94,126.88,8.563249]
[1766162004842,9.98,126.94,126.89,8.563249]
[1766162005038,9.98,126.94,126.9,8.563249]
[1766162005242,0.05294999,126.93,126.91,8.61416502]
[1766162005448,0.05294999,126.93,126.83,110.4415]
[1766162005644,9.98,126.94,126.84,46.58]
[1766162005838,9.98,126.93,126.82,46.58]
[1766162006038,9.98,126.98,126.88,110.4011]
[1766162006742,9.98,126.98,126.92,0.05740387]
[1766162006743,0.06052857,126.94,126.92,0.05740387]
[1766162007043,0.00052857,126.94,126.92,0.05740387]
[1766162007346,9.98,127.03,126.92,119.5606325]
[1766162007551,9.98,127.03,126.92,110.3656]
[1766162007750,9.98,127.03,126.92,156.9456]
[1766162007946,9.98,127.03,126.94,110.3482]
[1766162008151,5.36310711,127.04,126.96,110.3292]
[1766162008354,15.34310711,127.04,126.99,0.00290894]
[1766162008555,9.98,127.02,126.92,110.3631]
[1766162008742,9.98,127.02,126.93,110.3571]
[1766162008938,9.98,127.02,126.91,46.58]
[1766162009248,9.98,127.02,126.94,110.3457]
[1766162009450,0.00107459,126.99,126.97,0.05429823]
[1766162009645,9.98,127.03,126.97,0.05429823]
[1766162010155,120.2615,127.02,126.97,0.00429823]
[1766162010340,9.98,127.01,126.9,46.58]
[1766162010540,9.98,127.01,126.93,7.0939]
[1766162010941,9.98,127.01,126.9,156.9612]
[1766162011348,0.05160542,126.97,126.94,0.05167933]
[1766162012841,10.03160542,126.97,126.85,110.4228]
[1766162013044,9.98,126.95,126.83,110.4403]
[1766162013244,9.98,126.94,126.84,7.0992]
[1766162013449,9.98,126.94,126.83,157.0036]
[1766162013752,0.06001595,126.9,126.87,0.05442066]
[1766162015758,0.06001595,126.9,126.87,0.00442066]
[1766162017548,9.82001595,126.9,126.8,157.0265]
[1766162017855,16.8564,126.9,126.8,53.6614]
[1766162018051,9.76,126.89,126.8,46.56]
[1766162018453,0.05364137,126.86,126.78,9.96512]
[1766162018660,9.76,126.85,126.78,2.86252]
[1766162019159,9.76,126.84,126.78,2.86252]
[1766162019549,9.81357589,126.82,126.78,0.00661156]
[1766162019946,9.81357589,126.82,126.71,9.13762863]
[1766162019947,9.81357589,126.82,126.7,110.5506]
[1766162020255,9.76,126.82,126.7,110.5506]
[1766162020559,9.76,126.81,126.7,110.5506]
[1766162020754,0.05007422,126.77,126.75,0.00199465]
[1766162020960,9.76,126.79,126.66,110.587]
[1766162021154,9.76,126.78,126.66,110.587]
[1766162021359,9.76,126.78,126.67,46.56]
[1766162021557,9.76,126.78,126.67,164.2522]
[1766162021857,0.05591262,126.74,126.71,0.05263766]
[1766162022654,9.76,126.78,126.71,0.05263766]
[1766162023856,0.05507861,126.76,126.71,0.05263766]
[1766162024052,9.76,126.82,126.72,117.6435]
[1766162024252,9.76,126.82,126.72,7.1061]
[1766162024452,9.76,126.82,126.7,117.6614]
[1766162024661,9.76,126.81,126.7,117.6644]
[1766162024865,9.76,126.81,126.72,110.5387]
[1766162025062,0.06048221,126.78,126.72,7.1057]
[1766162025365,9.82048221,126.78,126.69,9.13762863]
[1766162025664,9.76,126.82,126.71,110.5479]
[1766162026051,0.0596247,126.78,126.75,0.05659852]
[1766162026251,0.05279987,126.78,126.75,0.05840341]
[1766162026668,0.05279987,126.78,126.71,7.1063]
[1766162026868,9.76,126.79,126.67,110.5824]
[1766162027368,9.76,126.79,126.69,7.1074]
[1766162027570,9.76,126.78,126.66,110.5885]
[1766162027764,110.4436,126.84,126.71,110.54752605]
[1766162028065,7.0996,126.84,126.72,7.1059]
[1766162028369,7.0996,126.84,126.72,110.5402]
[1766162028761,0.05503024,126.79,126.72,110.5402]
[1766162028963,0.05503024,126.79,126.7,166.26979928]
[1766162029171,157.0077,126.83,126.7,166.26979928]
[1766162029353,157.0077,126.83,126.72,110.5401]
[1766162029354,46.56,126.83,126.72,110.5401]
[1766162029664,9.76,126.82,126.73,7.57866389]
[1766162029969,9.81417295,126.79,126.74,0.00260901]
[1766162030168,9.81417295,126.79,126.7,119.68979928]
[1766162030466,9.76,126.82,126.73,9.13429928]
[1766162030975,0.05790732,126.79,126.76,0.05271313]
[1766162031268,9.76,126.82,126.76,0.05271313]
[1766162031461,9.76,126.82,126.76,0.00271313]
[1766162032377,9.81653523,126.8,126.76,0.00271313]
[1766162032668,9.76,126.78,126.68,9.13429928]
[1766162032965,9.76,126.77,126.66,9.13429928]
[1766162033172,9.76,126.76,126.66,9.13429928]
[1766162033370,9.76,126.76,126.67,7.1087]
[1766162033571,0.05641946,126.73,126.7,0.05294368]
[1766162034368,0.05641946,126.73,126.7,0.00294368]
[1766162036476,9.81641946,126.73,126.62,110.6223]
[1766162036672,9.76,126.73,126.62,110.6223]
[1766162036872,9.76,126.73,126.61,119.76469928]
[1766162037174,9.76,126.72,126.63,7.1112]
[1766162037578,0.05672385,126.69,126.63,7.1112]
[1766162038579,9.81672385,126.69,126.61,117.7424]
[1766162038873,0.05164551,126.66,126.59,110.6461]
[1766162039079,9.81164551,126.66,126.59,7.1131]
[1766162039376,9.81164551,126.66,126.59,110.6537]
[1766162039582,0.05164551,126.66,126.59,110.6537]
[1766162039878,0.05164551,126.66,126.61,0.05668728]
[1766162040575,7.1076,126.7,126.61,0.05668728]
[1766162040576,9.76,126.7,126.61,0.05668728]
[1766162040779,9.76,126.7,126.61,7.1119]
[1766162041584,0.05635497,126.67,126.64,0.05791355]
[1766162041784,9.81635497,126.67,126.59,16.24739928]
[1766162041968,46.58,126.71,126.6,7.43926275]
[1766162042175,9.76,126.7,126.61,7.43926275]
[1766162042485,9.76,126.68,126.56,110.6755]
[1766162042674,0.04989684,126.63,126.61,0.05437379]
[1766162042878,9.76,126.66,126.55,119.81939928]
[1766162043074,9.76,126.66,126.55,9.13429928]
[1766162043270,9.76,126.66,126.57,110.6713]
[1766162043475,9.76,126.66,126.58,7.1136]
[1766162043877,0.05217232,126.63,126.56,110.6783]
[1766162044076,0.05217232,126.63,126.58,7.1135]
[1766162044276,11.41217232,126.63,126.55,9.13429928]
[1766162044573,0.05911366,126.6,126.53,157.3185]
[1766162045389,0.05911366,126.6,126.54,110.6965]
[1766162045588,0.05911366,126.6,126.55,110.6888]
[1766162045990,11.36,126.63,126.57,7.1143]
[1766162046788,11.36,126.63,126.55,7.1154]
[1766162047004,0.05566183,126.6,126.58,0.05009702]
[1766162047483,46.6,126.65,126.58,0.05009702]
[1766162047691,11.36,126.69,126.6,110.6442]
[1766162047992,11.36,126.69,126.62,7.1115]
[1766162048490,0.05211448,126.67,126.64,0.05167159]
[1766162048892,11.41211448,126.67,126.57,119.80319928]
[1766162049087,11.36,126.67,126.57,119.80319928]
[1766162049285,11.36,126.67,126.58,110.6618]
[1766162049488,11.36,126.67,126.59,110.6528]
[1766162049988,0.05955481,126.64,126.62,0.05851011]
[1766162051493,11.36,126.67,126.62,0.05851011]
[1766162051694,18.4676,126.7,126.62,0.05851011]
[1766162051892,18.4676,126.7,126.59,110.6481]
[1766162052095,11.36,126.7,126.61,110.6331]
[1766162052293,11.36,126.7,126.62,110.6277]
[1766162052490,11.36,126.7,126.61,157.2731]
[1766162052696,0.05993766,126.67,126.65,0.05461506]
[1766162052997,46.62,126.71,126.65,0.05461506]
[1766162053888,0.0548525,126.69,126.65,0.05461506]
[1766162054696,0.0548525,126.69,126.66,7.33029624]
[1766162054990,0.0548525,126.69,126.65,0.05461506]
[1766162055191,11.4148525,126.69,126.65,0.00461506]
[1766162055392,11.4148525,126.69,126.58,110.6582]
[1766162055597,11.36,126.69,126.59,7.35327186]
[1766162055795,11.36,126.69,126.6,7.35327186]
[1766162055998,46.62,126.71,126.61,117.98687186]
[1766162055999,11.36,126.71,126.61,117.98687186]
[1766162056198,11.36,126.71,126.62,117.97687186]
[1766162056388,0.05096613,126.68,126.65,0.05621236]
[1766162056700,0.05096613,126.68,126.62,7.1114]
[1766162056889,0.05096613,126.68,126.63,7.1109]
[1766162057085,11.36,126.71,126.63,7.1109]
[1766162057698,0.05497491,126.68,126.66,0.05323335]
[1766162058089,0.05497491,126.68,126.61,7.112]
[1766162058494,11.41497491,126.68,126.61,7.112]
[1766162059098,11.41497491,126.68,126.63,0.03395218]
[1766162059298,11.41497491,126.68,126.63,7.14495218]
[1766162059487,110.4979,126.77,126.63,7.14495218]
[1766162059488,110.4717,126.8,126.66,110.5899]
[1766162060195,110.4717,126.8,126.67,46.64]
[1766162060493,0.05749821,126.75,126.72,0.00222011]
[1766162060694,0.05749821,126.75,126.65,110.5993]
[1766162060695,0.05749821,126.75,126.66,46.64]
[1766162060899,46.62,126.77,126.58,6.97185631]
[1766162061100,110.5338,126.73,126.6,110.6411]
[1766162061291,14.86969263,126.75,126.62,110.6278]
[1766162061602,0.05595098,126.7,126.67,0.03892708]
[1766162063493,110.5192,126.75,126.67,0.03892708]
[1766162063494,11.36,126.75,126.67,0.03892708]
[1766162063697,110.4774,126.8,126.67,110.5822]
[1766162063698,11.36,126.79,126.67,110.5822]
[1766162063899,11.36,126.78,126.66,157.2287]
[1766162064304,18.4636,126.77,126.66,53.7494]
[1766162064505,11.36,126.77,126.66,157.2288]
[1766162064703,0.05625436,126.73,126.7,0.05505276]
[1766162065301,0.05625436,126.73,126.66,7.1093]
[1766162066409,0.05625436,126.73,126.68,0.03982531]
[1766162068210,11.74625436,126.73,126.63,46.64]
[1766162068405,11.69,126.73,126.63,46.64]
[1766162068598,11.69,126.73,126.65,7.1096]
[1766162069413,0.05468134,126.7,126.65,7.1096]
[1766162069708,0.00468134,126.7,126.65,7.1096]
[1766162070213,0.00468134,126.7,126.66,7.1093]
[1766162070712,0.00468134,126.7,126.67,0.05]
[1766162075402,0.00468134,126.7,126.63,7.111]
[1766162075604,0.00468134,126.7,126.61,53.7519]
[1766162075913,12.58,126.71,126.61,7.1119]
[1766162076114,7.108,126.69,126.59,7.1132]
[1766162076307,7.108,126.69,126.59,46.64]
[1766162076503,0.05486976,126.65,126.59,46.64]
[1766162077209,0.05486976,126.65,126.56,110.674]
[1766162077510,0.05984641,126.62,126.56,110.674]
[1766162077709,12.58,126.67,126.57,110.6714]
[1766162078605,0.00094559,126.63,126.61,0.05604686]
[1766162081708,0.00094559,126.63,126.61,7.16814686]
[1766162083722,157.1547,126.73,126.63,7.1109]
[1766162083723,59.2,126.73,126.63,7.1109]
[1766162084733,0.05012892,126.69,126.67,0.05373931]
[1766162085019,0.05012892,126.69,126.67,0.00373931]
[1766162091821,7.15822892,126.69,126.67,0.00373931]
[1766162092127,7.15822892,126.69,126.58,46.64]
[1766162092128,12.58,126.68,126.58,46.64]
[1766162092816,12.58,126.68,126.58,157.3004]
[1766162093016,12.58,126.68,126.62,0.05705269]
[1766162093616,19.6886,126.68,126.62,0.05705269]
[1766162093820,12.58,126.68,126.62,0.05705269]
[1766162094022,0.00286281,126.66,126.62,0.05705269]
[1766162094325,0.00286281,126.66,126.62,7.1116]
[1766162095229,0.00286281,126.66,126.63,0.05036304]
[1766162095429,0.00286281,126.66,126.63,7.16136304]
[1766162096128,0.00286281,126.66,126.63,0.05036304]
[1766162097620,0.00286281,126.66,126.63,7.16126304]
[1766162098914,0.00286281,126.66,126.63,0.05036304]
[1766162101728,12.58286281,126.66,126.53,110.702]
[1766162101925,12.58,126.65,126.57,7.1141]
[1766162102116,12.58,126.65,126.56,46.64]
[1766162102313,19.6887,126.68,126.59,7.1133]
[1766162102517,124.741,126.74,126.61,110.6349]
[1766162102518,12.58,126.72,126.61,110.6349]
[1766162102724,12.58,126.72,126.62,46.64]
[1766162102927,0.05042405,126.68,126.65,0.0550328]
[1766162103629,0.00042405,126.68,126.65,0.0550328]
[1766162104124,0.00042405,126.68,126.65,7.1648328]
[1766162104314,0.00042405,126.68,126.65,110.6517328]
[1766162104517,12.81,126.78,126.68,110.5753]
[1766162104716,12.81,126.78,126.69,7.1078]
[1766162104914,12.81,126.77,126.66,0.05]
[1766162105129,12.81,126.75,126.64,46.64]
[1766162105331,12.81,126.73,126.64,46.69]
[1766162105525,12.8622272,126.7,126.61,0.05]
[1766162105727,12.81,126.7,126.61,0.05]
[1766162105922,19.9181,126.69,126.61,0.05]
[1766162106119,12.81,126.69,126.61,0.05]
[1766162106332,12.81,126.69,126.61,7.162]
[1766162106526,0.0543721,126.66,126.64,0.06035203]
[1766162107137,0.0043721,126.66,126.64,0.06035203]
[1766162110640,0.0043721,126.66,126.64,0.00035203]
[1766162111226,14.3943721,126.66,126.57,7.4942]
[1766162111433,12.81,126.66,126.57,7.4942]
[1766162111841,19.9209,126.64,126.55,7.4955]
[1766162112345,0.05039124,126.61,126.58,0.05064737]
[1766162112646,0.00039124,126.61,126.58,0.05064737]
[1766162113339,0.00039124,126.61,126.58,0.46064737]
[1766162113847,0.00039124,126.61,126.58,7.57434737]
[1766162114247,0.00039124,126.61,126.59,0.45]
[1766162114545,12.81,126.73,126.64,0.45]
[1766162114736,12.81,126.73,126.64,157.6974]
[1766162114938,12.81,126.73,126.66,7.1092]
[1766162115442,0.05302011,126.71,126.68,0.05913336]
[1766162115643,0.00302011,126.71,126.68,0.05913336]
[1766162115937,0.00302011,126.71,126.69,7.1075]
[1766162116146,0.00302011,126.71,126.69,54.2275]
[1766162116348,46.62,126.78,126.69,157.6856]
[1766162116732,46.62,126.78,126.7,7.1068]
[1766162117436,0.05594747,126.75,126.73,0.05298022]
[1766162117637,0.05594747,126.75,126.69,0.48]
[1766162118248,0.05594747,126.75,126.69,7.5876]
[1766162118739,0.05594747,126.75,126.71,0.05361289]
[1766162119634,12.68594747,126.75,126.71,0.00361289]
[1766162120850,0.05594747,126.75,126.71,0.00361289]
[1766162124851,19.79064747,126.75,126.71,0.00361289]
[1766162125153,12.63,126.74,126.71,0.00361289]
[1766162126944,0.05594747,126.75,126.71,0.00361289]
[1766162129356,12.63,126.82,126.72,1.01]
[1766162130249,12.63,126.8,126.72,8.1159]
[1766162130445,0.05506143,126.77,126.75,0.05112125]
[1766162130642,12.63,126.8,126.75,0.05112125]
[1766162131144,59.23,126.83,126.75,7.15532125]
[1766162131345,59.23,126.83,126.75,7.1042]
[1766162131756,59.23,126.83,126.78,0.05616678]
[1766162131757,0.05725654,126.8,126.78,0.05616678]
[1766162131958,12.68725654,126.8,126.73,7.1052]
[1766162132160,12.68725654,126.8,126.72,1.12]
[1766162132460,12.63,126.8,126.72,1.12]
[1766162132850,12.63,126.8,126.73,7.1051]
[1766162133050,0.05699811,126.78,126.75,0.05329418]
[1766162133353,66.3304,126.83,126.75,7.15749418]
[1766162133554,12.63,126.82,126.75,7.1042]
[1766162134356,0.05936263,126.8,126.77,0.05359528]
[1766162134765,0.05936263,126.8,126.77,0.00359528]
[1766162134956,13.95936263,126.8,126.77,0.00359528]
[1766162135161,13.95936263,126.8,126.7,157.1734]
[1766162135360,13.9,126.8,126.7,158.4234]
[1766162135756,110.4564,126.82,126.71,7.1063]
[1766162135757,13.9,126.79,126.71,7.1063]
[1766162136060,13.9,126.79,126.67,111.8663]
[1766162136262,0.05607294,126.74,126.72,0.00360174]
[1766162136464,13.9,126.77,126.72,0.00360174]
[1766162137148,13.9,126.75,126.72,0.00360174]
[1766162137354,13.9,126.75,126.66,7.1092]
[1766162137656,13.9,126.75,126.65,1.37]
[1766162137848,13.9,126.75,126.66,7.1093]
[1766162138361,0.05982428,126.72,126.69,0.0502578]
[1766162140357,21.0037,126.77,126.69,0.0502578]
[1766162140562,13.9,126.76,126.68,7.1082]
[1766162141257,0.05193255,126.73,126.71,0.05927211]
[1766162141565,0.05193255,126.73,126.64,112.1]
[1766162141566,13.95193255,126.73,126.64,112.1]
[1766162141771,13.9,126.73,126.64,112.1]
[1766162141948,13.9,126.73,126.67,7.1087]
[1766162142147,21.0042,126.76,126.67,1.52]
[1766162142656,0.05918541,126.73,126.7,0.05789152]
[1766162143066,13.9,126.76,126.7,0.05789152]
[1766162144061,0.05289189,126.74,126.7,0.05789152]
[1766162145269,0.00289189,126.74,126.71,1.5]
[1766162146560,0.00289189,126.74,126.71,46.62]
[1766162147151,0.00289189,126.74,126.7,0.05789152]
[1766162148665,0.00289189,126.74,126.7,7.16499152]
[1766162149667,0.00289189,126.74,126.7,1.66789152]
[1766162149870,0.00289189,126.74,126.72,8.7159]
[1766162150561,0.00289189,126.74,126.7,110.61319152]
[1766162150562,0.00289189,126.74,126.7,7.16489152]
[1766162150761,0.00289189,126.74,126.7,53.78489152]
[1766162151173,0.00289189,126.74,126.71,7.1066]
[1766162151571,0.00289189,126.74,126.7,0.05789152]
[1766162151775,13.90289189,126.74,126.67,7.1085]
[1766162152068,13.90289189,126.74,126.64,110.6035]
[1766162153164,13.9,126.73,126.64,46.6]
[1766162154066,0.05084902,126.7,126.67,0.00275979]
[1766162154267,13.95084902,126.7,126.61,110.6313]
[1766162154468,13.9,126.69,126.62,7.1113]
[1766162154777,13.9,126.69,126.61,46.62]
[1766162155075,0.04989943,126.66,126.64,0.05327483]
[1766162155477,0.04989943,126.66,126.6,46.62]
[1766162155668,13.94989943,126.66,126.6,46.62]
[1766162156567,0.04989943,126.66,126.6,46.62]
[1766162157082,13.94989943,126.66,126.58,7.1137]
[1766162157279,0.06031177,126.63,126.58,7.1137]
[1766162157467,0.00031177,126.63,126.58,2.03]
[1766162157878,0.00031177,126.63,126.59,7.1131]
[1766162158476,0.00031177,126.63,126.6,0.05674691]
[1766162159278,0.00031177,126.63,126.6,7.16924691]
[1766162159572,0.00031177,126.63,126.6,0.05674691]
[1766162163572,0.00031177,126.63,126.6,2.16674691]
[1766162163965,0.00031177,126.63,126.6,0.05674691]
[1766162164880,0.00031177,126.63,126.61,112.8264]
[1766162165379,0.00031177,126.63,126.61,119.9385]
[1766162165580,0.00031177,126.63,126.61,9.3021]
[1766162165980,13.33,126.7,126.61,9.3021]
[1766162166185,20.4376,126.7,126.61,2.19]
[1766162167077,0.05343281,126.67,126.64,0.05868197]
[1766162168973,13.38343281,126.67,126.59,7.113]
[1766162169191,13.33,126.67,126.59,9.463]
[1766162169978,0.05747228,126.64,126.59,9.463]
[1766162170385,0.05747228,126.64,126.58,46.64]
[1766162171279,0.05747228,126.64,126.59,2.39]
[1766162171482,0.05747228,126.64,126.59,113.0414]
[1766162171784,13.33,126.68,126.6,0.05691878]
[1766162171986,13.33,126.67,126.57,48.97]
[1766162172574,13.33,126.67,126.61,0.05257079]
[1766162172575,0.05872625,126.63,126.61,0.05257079]
[1766162173086,0.05872625,126.63,126.57,48.97]
[1766162173789,0.05872625,126.63,126.58,7.1138]